bitfinex-derivatives/quotes_ETHF0:USTF0_20250321
["timestamp","ask_amount","ask_price","bid_price","bid_amount"]
[1742600084195,7.53090494,1969.1,1969.0,1.34891673]
[1742600085701,7.53090494,1969.1,1969.0,2.36504673]
[1742600086095,7.53090494,1969.1,1969.0,1.34891673]
[1742600086292,7.53090494,1969.1,1969.0,2.36504673]
[1742600094506,4.32310494,1969.1,1969.0,2.36504673]
[1742600102208,4.32310494,1969.1,1969.0,1.34891673]
[1742600103517,4.32310494,1969.1,1969.0,2.36504673]
[1742600103910,4.32310494,1969.1,1969.0,1.34891673]
[1742600106218,2.94750494,1969.1,1969.0,2.36504673]
[1742600106412,0.99451944,1969.1,1969.0,2.36504673]
[1742600106918,0.99451944,1969.1,1969.0,3.72834673]
[1742600107120,1.95413566,1969.1,1969.0,3.72834673]
[1742600107321,1.01607,1969.1,1969.0,3.72834673]
[1742600107519,1.95408195,1969.1,1969.0,3.72834673]
[1742600108218,1.01607,1969.1,1969.0,3.72834673]
[1742600109619,1.95401092,1969.1,1969.0,3.72834673]
[1742600110625,1.01607,1969.1,1969.0,3.72834673]
[1742600111123,4.3041449,1969.1,1969.0,3.72834673]
[1742600116315,3.2880749,1969.1,1969.0,3.72834673]
[1742600116517,0.99523398,1969.1,1969.0,3.72834673]
[1742600116723,2.01130398,1969.1,1969.0,3.72834673]
[1742600116921,3.38920398,1969.1,1969.0,3.72834673]
[1742600117222,3.33190184,1969.1,1969.0,3.72834673]
[1742600117922,4.32713675,1969.1,1969.0,3.72834673]
[1742600119228,3.38920491,1969.1,1969.0,3.72834673]
[1742600119719,3.33190027,1969.1,1969.0,3.72834673]
[1742600120827,4.32709099,1969.1,1969.0,3.72834673]
[1742600122628,4.32709099,1969.1,1969.0,3.04244673]
[1742600122927,4.32709099,1969.1,1969.0,2.36504673]
[1742600123130,5.01359099,1969.1,1969.0,2.36504673]
[1742600124026,5.01359099,1969.1,1969.0,1.34891673]
[1742600124234,5.01359099,1969.1,1969.0,0.00761673]
[1742600124422,5.01359099,1969.1,1969.0,1.02374673]
[1742600125129,5.01359099,1969.1,1969.0,0.00761673]
[1742600126627,5.01359099,1969.1,1969.0,1.41991673]
[1742600129034,5.01359099,1969.1,1969.0,2.43604673]
[1742600132537,3.31102099,1969.1,1969.0,2.43604673]
[1742600132834,3.38916072,1969.1,1969.0,2.43604673]
[1742600133031,3.38916072,1969.1,1969.0,3.08934673]
[1742600133232,2.39397,1969.1,1969.0,3.08934673]
[1742600134931,4.03540027,1969.1,1969.0,2.43604673]
[1742600135436,5.03059099,1969.1,1969.0,2.43604673]
[1742600137737,5.03059099,1969.1,1969.0,1.41991673]
[1742600138032,5.03059099,1969.1,1969.0,0.00761673]
[1742600138238,3.09747,1969.1,1969.0,0.00761673]
[1742600138428,3.09747,1969.1,1969.0,1.02374673]
[1742600138624,3.09747,1969.1,1969.0,2.35304673]
[1742600139636,4.03557652,1969.1,1969.0,2.35304673]
[1742600140232,5.03092965,1969.1,1969.0,2.35304673]
[1742600142843,4.32742965,1969.1,1969.0,2.35304673]
[1742600146134,1.3779,1969.1,1969.0,5.56084673]
[1742600146334,1.3779,1969.1,1969.0,2.35304673]
[1742600147033,2.94921198,1969.2,1969.1,1.01607]
[1742600147232,4.25101198,1969.2,1969.1,3.75857]
[1742600153948,1.93316198,1969.2,1969.1,3.75857]
[1742600154244,0.99522429,1969.2,1969.1,3.75857]
[1742600154446,4.33101936,1969.3,1969.2,1.01602]
[1742600154649,4.33101936,1969.3,1969.2,2.36082]
[1742600154845,3.33579507,1969.3,1969.2,2.36082]
[1742600155445,2.39799673,1969.3,1969.2,2.36082]
[1742600155644,1.02359673,1969.3,1969.2,2.36082]
[1742600156146,1.32851673,1969.3,1969.2,2.36082]
[1742600157145,2.34448673,1969.3,1969.2,2.36082]
[1742600165956,0.00761673,1969.3,1969.2,2.36082]
[1742600166156,0.00761673,1969.3,1969.2,5.57482]
[1742600170051,1.37061673,1969.3,1969.2,5.57482]
[1742600173757,2.03951673,1969.3,1969.2,5.57482]
[1742600174863,1.37061673,1969.3,1969.2,5.57482]
[1742600177072,2.38658673,1969.3,1969.2,5.57482]
[1742600177269,3.05138673,1969.3,1969.2,5.57482]
[1742600177565,3.05138673,1969.3,1969.1,3.18339]
[1742600177566,1.01602,1969.2,1969.1,4.23007]
[1742600177872,2.98642,1969.2,1969.1,1.01607]
[1742600178068,2.98642,1969.2,1969.1,2.39397]
[1742600179370,1.9704,1969.2,1969.1,2.39397]
[1742600179569,1.9704,1969.2,1969.1,3.05267]
[1742600179773,1.9704,1969.2,1969.1,3.76387]
[1742600183173,1.3284,1969.2,1969.1,3.76387]
[1742600185474,0.00761673,1969.3,1969.2,1.01602]
[1742600185674,1.30051673,1969.3,1969.2,5.56792]
[1742600191168,2.00471673,1969.3,1969.2,5.56792]
[1742600194866,3.02068673,1969.3,1969.2,1.01602]
[1742600195273,3.02068673,1969.3,1969.1,5.60342]
[1742600195274,1.01602,1969.2,1969.1,5.60342]
[1742600195475,1.01607,1969.1,1969.0,1.02372673]
[1742600195669,2.37567,1969.1,1969.0,2.39812673]
[1742600196372,3.78427,1969.1,1969.0,2.39812673]
[1742600196574,2.7682,1969.1,1969.0,2.39812673]
[1742600198584,3.78427,1969.1,1969.0,2.39812673]
[1742600198775,2.7682,1969.1,1969.0,2.39812673]
[1742600198975,2.7682,1969.1,1969.0,3.06522673]
[1742600201777,3.78427,1969.1,1969.0,3.06522673]
[1742600202480,3.78427,1969.1,1969.0,2.39812673]
[1742600206378,2.7682,1969.1,1969.0,2.39812673]
[1742600207183,3.78427,1969.1,1969.0,2.39812673]
[1742600208985,2.7682,1969.1,1969.0,2.39812673]
[1742600209483,3.78427,1969.1,1969.0,2.39812673]
[1742600209877,2.7682,1969.1,1969.0,2.39812673]
[1742600210081,3.78427,1969.1,1969.0,2.39812673]
[1742600210286,2.7682,1969.1,1969.0,2.39812673]
[1742600210487,3.78427,1969.1,1969.0,2.39812673]
[1742600213389,2.7682,1969.1,1969.0,2.39812673]
[1742600213778,3.78427,1969.1,1969.0,2.39812673]
[1742600215791,2.7682,1969.1,1969.0,2.39812673]
[1742600216992,1.4086,1969.1,1969.0,2.39812673]
[1742600217193,0.00761673,1969.3,1969.2,1.01602]
[1742600217787,0.00761673,1969.3,1969.2,4.22382]
[1742600217994,0.00761673,1969.3,1969.2,6.27572]
[1742600221186,1.3859,1969.6,1969.5,1.01587]
[1742600221392,2.6993,1969.6,1969.5,1.01587]
[1742600221886,2.6993,1969.6,1969.5,2.35367]
[1742600223286,3.71512,1969.6,1969.5,2.35367]
[1742600224093,2.6993,1969.6,1969.5,2.35367]
[1742600224301,3.71512,1969.6,1969.5,2.35367]
[1742600224492,2.6993,1969.6,1969.5,2.35367]
[1742600226188,3.71512,1969.6,1969.5,2.35367]
[1742600229593,1.01597,1969.4,1969.3,1.01593]
[1742600229999,2.31607,1969.4,1969.3,2.33113]
[1742600234403,2.31607,1969.4,1969.3,1.3152]
[1742600235698,2.31607,1969.4,1969.3,2.33117]
[1742600236306,1.01602,1969.3,1969.2,1.01597]
[1742600236501,3.68372,1969.3,1969.2,1.01597]
[1742600236902,3.68372,1969.3,1969.2,2.32467]
[1742600242309,1.01607,1969.1,1969.0,1.02370673]
[1742600242510,1.01607,1969.1,1969.0,2.39570673]
[1742600243003,1.72157,1969.1,1969.0,2.39570673]
[1742600243197,1.72157,1969.1,1969.0,0.00761673]
[1742600243901,3.11087,1969.1,1969.0,0.00761673]
[1742600244909,3.11087,1969.1,1969.0,1.02374673]
[1742600245410,3.11087,1969.1,1969.0,0.00761673]
[1742600247306,1.01618,1968.9,1968.8,1.3368]
[1742600247507,1.01623,1968.8,1968.7,4.22924]
[1742600247699,2.98813,1968.8,1968.7,2.43254]
[1742600248205,2.54076,1968.7,1968.3,2.54113]
[1742600248510,1.01643,1968.4,1968.3,1.02406673]
[1742600248804,1.01643,1968.4,1968.3,1.42391673]
[1742600249009,1.01643,1968.4,1968.3,0.00761673]
[1742600249412,2.42783,1968.4,1968.3,0.00761673]
[1742600250712,2.42783,1968.4,1968.3,1.42861673]
[1742600250909,2.42783,1968.4,1968.3,2.44510673]
[1742600251125,1.4114,1968.4,1968.3,2.44510673]
[1742600251711,10.19219,1968.6,1968.5,1.01638]
[1742600252013,6.98439,1968.6,1968.5,1.01638]
[1742600252617,1.01639,1968.6,1968.5,1.01638]
[1742600253018,2.30219,1968.6,1968.5,2.37908]
[1742600253909,1.01638,1968.5,1968.4,4.2294]
[1742600254110,5.50998,1968.5,1968.4,4.5757]
[1742600254412,6.16618,1968.5,1968.4,1.3627]
[1742600254620,1.01643,1968.4,1968.3,1.02410673]
[1742600254920,2.30223,1968.4,1968.3,2.38680673]
[1742600255821,1.01642,1968.5,1968.4,1.01643]
[1742600256014,1.01642,1968.5,1968.4,2.33153]
[1742600259618,1.01642,1968.5,1968.4,1.3151]
[1742600259814,4.22422,1968.5,1968.4,1.3151]
[1742600260019,4.22422,1968.5,1968.4,2.33153]
[1742600260725,1.01642,1968.5,1968.4,2.33153]
[1742600260923,4.22422,1968.5,1968.4,2.33153]
[1742600261419,4.22422,1968.5,1968.4,1.3151]
[1742600261820,4.22422,1968.5,1968.4,2.33153]
[1742600262025,5.54212,1968.5,1968.4,2.33153]
[1742600262224,2.33432,1968.5,1968.4,2.33153]
[1742600262620,2.33432,1968.5,1968.4,2.97923]
[1742600266029,2.33432,1968.5,1968.4,3.65903]
[1742600267145,2.33432,1968.5,1968.4,2.97923]
[1742600267341,1.01643,1968.4,1968.3,1.02405673]
[1742600267539,3.67883,1968.4,1968.3,2.40485673]
[1742600274748,3.67883,1968.4,1968.3,1.38841673]
[1742600274944,3.67883,1968.4,1968.3,0.00761673]
[1742600275544,4.61566457,1968.4,1968.3,1.32121673]
[1742600275739,3.67883,1968.4,1968.3,1.32121673]
[1742600276153,4.61604294,1968.4,1968.3,1.32121673]
[1742600277656,5.61081728,1968.4,1968.3,0.00761673]
[1742600277857,5.61081728,1968.4,1968.3,1.34121673]
[1742600279359,5.61081728,1968.4,1968.3,0.00761673]
[1742600280155,1.01659,1968.1,1968.0,4.8873]
[1742600280356,1.01659,1968.1,1968.0,3.0236]
[1742600280551,3.67849,1968.1,1968.0,3.0236]
[1742600280758,3.67849,1968.1,1968.0,2.3669]
[1742600281655,3.67849,1968.1,1968.0,2.36694]
[1742600283359,3.67849,1968.1,1968.0,1.3503]
[1742600283563,3.67849,1968.1,1968.0,2.36694]
[1742600283861,3.67849,1968.1,1968.0,1.3503]
[1742600285057,3.67849,1968.1,1968.0,2.36694]
[1742600285259,3.67849,1968.1,1968.0,1.01664]
[1742600285960,2.32339,1968.1,1968.0,1.01664]
[1742600286256,2.54122,1968.3,1968.2,1.01654]
[1742600286257,1.01649,1968.3,1968.2,1.01654]
[1742600286563,2.30459,1968.3,1968.2,1.01654]
[1742600286761,2.30459,1968.3,1968.2,2.36544]
[1742600288261,1.01649,1968.3,1968.2,2.36544]
[1742600288463,4.22429,1968.4,1968.3,1.01649]
[1742600288657,4.22429,1968.4,1968.3,3.03259]
[1742600288658,3.2078,1968.4,1968.3,3.03259]
[1742600288856,4.22423,1968.4,1968.3,3.03259]
[1742600289554,5.57913,1968.4,1968.3,2.0161]
[1742600289760,5.57913,1968.4,1968.3,3.03259]
[1742600290664,5.57913,1968.4,1968.3,3.68139]
[1742600292169,2.37133,1968.4,1968.3,3.68139]
[1742600298167,1.01643,1968.4,1968.3,3.68139]
[1742600301670,2.38871,1968.5,1968.4,1.01643]
[1742600301867,2.38871,1968.5,1968.4,2.32153]
[1742600302866,2.38871,1968.5,1968.4,1.3051]
[1742600303070,1.01654,1968.3,1968.2,1.01651]
[1742600303574,2.30594,1968.3,1968.2,1.01651]
[1742600303971,1.01654,1968.2,1968.1,5.62615]
[1742600304180,1.01654,1968.2,1968.1,1.01655]
[1742600304375,2.42614,1968.2,1968.1,1.01655]
[1742600306079,1.01664,1968.1,1968.0,1.0166]
[1742600306271,2.42624,1968.1,1968.0,2.3112]
[1742600307383,1.4096,1968.1,1968.0,2.3112]
[1742600308382,2.42619,1968.1,1968.0,2.3112]
[1742600309082,1.4096,1968.1,1968.0,2.3112]
[1742600309476,2.42619,1968.1,1968.0,2.3112]
[1742600313082,1.01655,1968.2,1968.1,1.01659]
[1742600313282,4.22433,1968.3,1968.2,1.01654]
[1742600313587,5.75509,1968.5,1968.2,1.01654]
[1742600313588,5.51368,1968.5,1968.4,1.01643]
[1742600313879,3.2367415,1968.5,1968.4,1.01643]
[1742600314988,5.63939246,1968.5,1968.4,1.01643]
[1742600315582,7.12301246,1968.5,1967.9,3.2078]
[1742600315787,1.01664,1968.0,1967.9,2.43818]
[1742600315987,1.01664,1968.0,1967.9,1.01668]
[1742600316792,2.42294,1968.0,1967.9,1.01668]
[1742600326688,1.01674,1967.9,1967.8,1.0167]
[1742600326882,2.32464,1967.9,1967.8,1.0167]
[1742600327793,2.32464,1967.9,1967.8,1.6904]
[1742600329787,2.99854,1967.9,1967.8,1.6904]
[1742600333607,2.99854,1967.9,1967.8,1.0167]
[1742600335409,2.99854,1967.9,1967.8,2.3493]
[1742600341814,2.99854,1967.9,1967.8,3.024]
[1742600342608,2.99854,1967.9,1967.8,2.3493]
[1742600343208,1.9818,1967.9,1967.8,2.3493]
[1742600343409,2.99849,1967.9,1967.8,2.3493]
[1742600352519,1.3079,1967.9,1967.8,2.3493]
[1742600352712,2.32459,1967.9,1967.8,2.3493]
[1742600353711,1.01669,1967.9,1967.8,2.3493]
[1742600354209,1.4113,1968.0,1967.9,1.01669]
[1742600354407,2.42794,1968.0,1967.9,3.04959]
[1742600356518,2.42794,1968.0,1967.9,2.40079]
[1742600356818,3.36627547,1968.0,1967.9,1.3841]
[1742600357019,4.36182849,1968.0,1967.9,1.3841]
[1742600357319,4.36182849,1968.0,1967.9,2.40079]
[1742600358718,1.01674,1967.9,1967.8,2.38221]
[1742600358919,3.10784,1967.9,1967.8,2.38221]
[1742600359411,1.01674,1967.8,1967.7,1.01675]
[1742600359617,1.01685,1967.6,1967.5,4.89215]
[1742600359813,1.01685,1967.6,1967.5,2.38235]
[1742600360019,2.41215,1967.6,1967.5,2.38235]
[1742600361817,1.3953,1967.6,1967.5,2.38235]
[1742600362317,2.41215,1967.6,1967.5,2.38235]
[1742600362815,1.3953,1967.6,1967.5,2.38235]
[1742600363120,0.6824,1967.8,1967.5,3.9077]
[1742600363319,3.10446,1967.8,1967.7,1.0168]
[1742600363519,2.42206,1967.8,1967.7,1.0168]
[1742600363715,2.42206,1967.8,1967.7,2.3829]
[1742600367415,2.42206,1967.8,1967.7,1.3661]
[1742600368419,2.42206,1967.8,1967.7,2.3829]
[1742600375428,1.0168,1967.7,1967.5,0.6999]
[1742600375630,1.0169,1967.5,1967.4,4.88222]
[1742600375932,1.0169,1967.5,1967.4,1.66722]
[1742600376123,1.6699,1967.5,1967.4,1.66722]
[1742600376815,3.0105,1967.5,1967.4,3.02442]
[1742600378225,3.0105,1967.5,1967.4,1.3572]
[1742600378640,1.01695,1967.4,1967.3,1.01698]
[1742600378930,2.35755,1967.4,1967.3,1.01698]
[1742600379231,1.017,1967.3,1967.2,2.37422]
[1742600379433,3.6775,1967.3,1967.2,2.37422]
[1742600385131,3.6775,1967.3,1967.2,2.37425]
[1742600387735,3.6775,1967.3,1967.2,1.3572]
[1742600388736,3.6775,1967.3,1967.2,2.37425]
[1742600390137,3.0304,1967.3,1967.2,2.37425]
[1742600391339,2.3576,1967.3,1967.2,2.37425]
[1742600396038,3.0643,1967.3,1967.2,2.37425]
[1742600397431,2.3576,1967.3,1967.2,2.37425]
[1742600399437,3.0203,1967.3,1967.2,2.37425]
[1742600400842,4.54591,1967.3,1967.0,5.75888]
[1742600401042,1.3818,1967.2,1967.1,1.3799]
[1742600401243,2.39891,1967.2,1967.1,2.39696]
[1742600402542,1.3818,1967.2,1967.1,2.39696]
[1742600402739,1.3818,1967.2,1967.1,3.75606]
[1742600404243,2.39885,1967.2,1967.1,3.75606]
[1742600409649,1.01705,1967.3,1967.2,1.01705]
[1742600409851,2.38205,1967.3,1967.2,2.35335]
[1742600410849,3.32022065,1967.3,1967.2,2.35335]
[1742600411854,3.32024832,1967.3,1967.2,2.35335]
[1742600415452,2.38205,1967.3,1967.2,2.35335]
[1742600416151,1.01711,1967.2,1967.1,1.01706]
[1742600416358,3.00821,1967.2,1967.1,2.39576]
[1742600418257,2.33731,1967.2,1967.1,2.39576]
[1742600418456,2.33731,1967.2,1967.1,3.04916]
[1742600421861,2.33731,1967.2,1967.1,2.39576]
[1742600422058,5.54511,1967.2,1967.1,1.3787]
[1742600423058,2.33731,1967.2,1967.1,2.39581]
[1742600424155,1.01716,1967.1,1967.0,1.01712]
[1742600424356,3.78896,1967.1,1967.0,1.01712]
[1742600426568,1.01716,1967.0,1966.9,2.36638]
[1742600426762,2.36786,1967.0,1966.9,2.36638]
[1742600430171,1.01721,1966.9,1966.8,1.01722]
[1742600430467,2.33611,1966.9,1966.8,2.37602]
[1742600434762,2.41295,1967.1,1967.0,1.01716]
[1742600434967,1.3213,1967.1,1967.0,1.01716]
[1742600435163,1.3213,1967.1,1967.0,2.37826]
[1742600435364,2.33841,1967.1,1967.0,2.37826]
[1742600444379,3.04131,1967.1,1967.0,2.37826]
[1742600470303,3.97912309,1967.1,1967.0,2.37826]
[1742600470604,4.97411919,1967.1,1967.0,2.37826]
[1742600473304,4.0363061,1967.1,1967.0,2.37826]
[1742600473508,3.04131,1967.1,1967.0,2.37826]
[1742600475106,2.54252,1967.3,1967.2,1.01705]
[1742600475107,1.01704,1967.3,1967.2,1.01705]
[1742600475309,6.4892154,1967.4,1967.3,1.017]
[1742600475607,7.48406406,1967.4,1967.3,1.017]
[1742600476409,8.87056406,1967.4,1967.3,1.017]
[1742600476803,1.017,1967.3,1967.2,2.32301]
[1742600477012,3.3413154,1967.3,1967.2,2.32301]
[1742600477403,4.33616406,1967.3,1967.2,1.306]
[1742600479802,4.33616406,1967.3,1967.2,2.32305]
[1742600480203,4.33616406,1967.3,1967.2,1.306]
[1742600484415,1.01705,1967.2,1967.1,1.01706]
[1742600484620,3.00395,1967.2,1967.1,2.31726]
[1742600489911,3.00395,1967.2,1967.1,1.3002]
[1742600490218,3.00395,1967.2,1966.8,3.90274]
[1742600490219,1.01731,1966.8,1966.7,3.215]
[1742600490817,2.59432367,1967.0,1966.8,1.01721]
[1742600491018,2.01157344,1967.0,1966.9,1.01721]
[1742600491216,2.01157344,1967.0,1966.9,1.68291]
[1742600491418,2.01157344,1967.0,1966.9,2.36031]
[1742600491419,1.01719,1967.0,1966.9,2.36031]
[1742600491715,10.19288,1967.2,1967.1,1.01711]
[1742600491917,1.01708,1967.2,1967.1,1.01711]
[1742600492114,1.01708,1967.2,1967.1,1.70181]
[1742600493014,2.30888,1967.2,1967.1,3.05671]
[1742600493215,1.2918,1967.2,1967.1,3.05671]
[1742600494324,2.30885,1967.2,1967.1,3.05671]
[1742600503125,2.30885,1967.2,1967.1,1.3549]
[1742600503327,5.51665,1967.2,1967.1,1.3549]
[1742600503623,1.01711,1967.1,1967.0,1.2991]
[1742600503824,1.01716,1967.0,1966.9,2.31629]
[1742600504015,1.70006,1967.0,1966.9,2.31629]
[1742600504221,3.04166,1967.0,1966.9,2.31629]
[1742600512329,3.04166,1967.0,1966.9,2.31631]
[1742600514330,6.24946,1967.0,1966.9,1.2991]
[1742600514531,6.24946,1967.0,1966.9,2.31631]
[1742600515944,6.24946,1967.0,1966.9,1.2991]
[1742600516540,6.24946,1967.0,1966.9,2.31631]
[1742600517243,3.04166,1967.0,1966.9,2.31631]
[1742600530957,1.3416,1967.0,1966.9,2.31631]
[1742600531160,3.2078,1967.1,1967.0,1.01716]
[1742600531356,3.2078,1967.1,1967.0,2.97106]
[1742600532261,5.16350122,1967.1,1967.0,2.97106]
[1742600532656,1.01711,1967.1,1967.0,2.97106]
[1742600533360,2.42161,1967.1,1967.0,2.97106]
[1742600536566,3.36016433,1967.1,1967.0,2.97106]
[1742600536863,4.35593207,1967.1,1967.0,2.97106]
[1742600538966,3.36016433,1967.1,1967.0,2.97106]
[1742600540062,4.35597697,1967.1,1967.0,2.97106]
[1742600540670,3.36016433,1967.1,1967.0,2.97106]
[1742600542267,3.36015028,1967.1,1967.0,2.97106]
[1742600542761,4.35580911,1967.1,1967.0,2.97106]
[1742600543363,5.04770911,1967.1,1967.0,1.3105]
[1742600544266,5.04770911,1967.1,1967.0,2.32766]
[1742600546770,5.04770911,1967.1,1967.0,1.3105]
[1742600547474,1.01716,1967.0,1966.9,1.399]
[1742600547671,7.27680028,1967.0,1966.9,1.399]
[1742600548271,1.01721,1966.9,1966.8,1.01722]
[1742600548467,4.01335028,1966.9,1966.8,1.01722]
[1742600549272,3.07481,1966.9,1966.8,1.01722]
[1742600550769,1.01726,1966.8,1966.7,2.41628]
[1742600550967,2.33656,1966.8,1966.7,2.41628]
[1742600551372,5.54436,1966.8,1966.7,1.399]
[1742600551968,6.48265942,1966.8,1966.7,1.399]
[1742600552273,6.53982655,1966.8,1966.7,1.399]
[1742600552874,5.54436,1966.8,1966.7,1.399]
[1742600554367,5.54436,1966.8,1966.7,2.41631]
[1742600555171,5.54436,1966.8,1966.7,1.399]
[1742600556574,1.01731,1966.7,1966.6,1.01732]
[1742600556776,3.77831,1966.7,1966.6,2.41732]
[1742600560178,2.42071,1966.7,1966.6,2.41732]
[1742600560478,2.42071,1966.7,1966.6,3.10942]
[1742600562980,3.2078,1966.8,1966.7,1.01731]
[1742600563183,1.01725,1966.9,1966.8,1.01726]
[1742600563672,1.01725,1966.9,1966.8,2.36036]
[1742600567787,4.2031557,1967.0,1966.9,1.01721]
[1742600567990,0.9953557,1967.0,1966.9,1.70651]
[1742600568191,14.06773164,1967.2,1967.1,1.01711]
[1742600568689,13.05066164,1967.2,1967.1,1.01711]
[1742600568889,13.05066164,1967.2,1967.1,2.43661]
[1742600569184,14.06771164,1967.2,1967.1,2.43661]
[1742600569783,9.84286164,1967.2,1967.1,2.43661]
[1742600570084,10.85991164,1967.2,1967.1,2.43661]
[1742600575490,12.28111164,1967.2,1967.1,2.43661]
[1742600578195,12.94231164,1967.2,1967.1,2.43661]
[1742600579488,2.54281,1967.1,1966.9,1.01716]
[1742600579690,6.17891,1967.1,1967.0,1.3643]
[1742600579893,4.88621,1967.1,1967.0,1.3643]
[1742600580687,1.01721,1966.9,1966.8,1.68492]
[1742600581278,1.01721,1966.9,1966.8,1.01722]
[1742600582087,1.01726,1966.8,1966.7,1.01727]
[1742600582289,1.68876,1966.8,1966.7,2.37357]
[1742600583889,1.01726,1966.8,1966.7,2.37357]
[1742600584381,1.01726,1966.8,1966.7,3.71007]
[1742600587399,1.01726,1966.8,1966.7,2.37357]
[1742600591404,0.6593,1967.0,1966.7,3.89948]
[1742600591603,1.6765,1967.0,1966.9,1.01721]
[1742600592103,1.6765,1967.0,1966.9,2.41721]
[1742600592297,10.19296,1967.1,1967.0,1.01716]
[1742600592603,10.19296,1967.1,1967.0,2.41716]
[1742600592800,4.22496,1967.1,1967.0,2.41716]
[1742600595803,1.01716,1967.1,1967.0,2.41716]
[1742600595996,5.51916,1967.1,1967.0,2.41716]
[1742600599307,6.18026,1967.1,1967.0,2.41716]
[1742600599609,7.1175465,1967.1,1967.0,1.4]
[1742600599810,6.18026,1967.1,1967.0,1.4]
[1742600600011,7.17479727,1967.1,1967.0,2.41716]
[1742600600208,7.17479727,1967.1,1967.0,1.4]
[1742600600412,6.18026,1967.1,1967.0,2.41716]
[1742600605215,7.11820571,1967.1,1967.0,2.41716]
[1742600606512,7.11820571,1967.1,1967.0,1.4]
[1742600607012,8.11345932,1967.1,1967.0,1.4]
[1742600607720,7.11820571,1967.1,1967.0,1.4]
[1742600608313,8.11372707,1967.1,1967.0,2.41716]
[1742600609221,7.11820571,1967.1,1967.0,2.41716]
[1742600609422,7.11820571,1967.1,1967.0,1.4]
[1742600609619,7.11820571,1967.1,1967.0,2.41716]
[1742600610322,8.11355612,1967.1,1967.0,2.41716]
[1742600617621,4.90575612,1967.1,1967.0,2.41716]
[1742600617823,8.11355612,1967.1,1967.0,2.41716]
[1742600619120,8.11355612,1967.1,1967.0,1.4]
[1742600619323,8.11355612,1967.1,1967.0,2.41716]
[1742600619826,8.11355612,1967.1,1967.0,1.4]
[1742600620833,1.01716,1967.0,1966.9,1.01719]
[1742600621128,1.01716,1967.0,1966.9,2.35719]
[1742600621129,3.34530571,1967.0,1966.9,2.35719]
[1742600621427,4.34065612,1967.0,1966.9,2.35721]
[1742600623131,4.34195117,1967.0,1966.9,2.35721]
[1742600623429,3.40271041,1967.0,1966.9,2.35721]
[1742600623728,2.40736,1967.0,1966.9,2.35721]
[1742600624429,1.3902,1967.0,1966.9,2.35721]
[1742600624630,3.2078,1967.1,1967.0,1.01716]
[1742600624831,3.2078,1967.1,1967.0,3.02446]
[1742600625729,9.84286164,1967.2,1967.1,1.01711]
[1742600625927,9.84286164,1967.2,1967.1,3.00211]
[1742600627629,9.84286164,1967.2,1967.1,6.21611]
[1742600628033,10.85991164,1967.2,1967.1,6.21611]
[1742600628230,12.17331164,1967.2,1967.1,6.21611]
[1742600628436,11.15626164,1967.2,1967.1,6.21611]
[1742600629322,12.17331164,1967.2,1967.1,6.21611]
[1742600632428,12.17331164,1967.2,1967.1,2.31971]
[1742600632630,12.17331164,1967.2,1967.1,1.3026]
[1742600632825,13.1111763,1967.2,1967.1,1.3026]
[1742600633126,1.01716,1967.0,1966.9,1.66196]
[1742600634537,2.43056,1967.0,1966.9,3.02406]
[1742600636532,1.4134,1967.0,1966.9,3.02406]
[1742600636833,1.67144,1967.1,1967.0,1.01716]
[1742600637033,2.98334,1967.1,1967.0,2.36246]
[1742600643538,1.9662,1967.1,1967.0,2.36246]
[1742600643828,4.9298,1967.3,1967.2,1.01705]
[1742600644030,5.86774626,1967.3,1967.2,1.01705]
[1742600644330,4.9298,1967.3,1967.2,1.01705]
[1742600644536,4.9298,1967.3,1967.2,1.67245]
[1742600645132,6.3154,1967.3,1967.2,2.95645]
[1742600646542,3.1076,1967.3,1967.2,2.95645]
[1742600648942,3.1076,1967.3,1967.2,2.30105]
[1742600649335,4.04562463,1967.3,1967.2,2.30105]
[1742600649736,4.04562463,1967.3,1967.2,1.01705]
[1742600650136,4.04562463,1967.3,1967.2,2.42825]
[1742600650338,7.25342463,1967.3,1967.2,2.42825]
[1742600650741,7.25342463,1967.3,1967.2,1.01705]
[1742600651042,8.24870612,1967.3,1967.2,1.01705]
[1742600651435,7.31068149,1967.3,1967.2,1.01705]
[1742600651835,6.3154,1967.3,1967.2,1.01705]
[1742600653045,6.3154,1967.3,1967.2,2.37395]
[1742600654944,5.2984,1967.3,1966.9,6.40702]
[1742600655147,1.01716,1967.1,1967.0,2.30331]
[1742600655646,2.98456,1967.1,1967.0,2.30331]
[1742600658352,1.01721,1967.0,1966.9,4.23116]
[1742600658647,3.11881,1967.0,1966.9,5.61106]
[1742600660338,3.11881,1967.0,1966.9,2.39706]
[1742600665052,1.3909,1967.0,1966.9,2.39706]
[1742600666149,0.673,1967.1,1967.0,1.01716]
[1742600666357,3.2078,1967.3,1967.2,1.01705]
[1742600666554,4.2248,1967.3,1967.2,1.01705]
[1742600667753,5.6234,1967.3,1967.2,2.42255]
[1742600671761,2.4156,1967.3,1967.2,2.42255]
[1742600674262,1.3986,1967.3,1967.2,2.42255]
[1742600674560,2.4156,1967.3,1967.2,2.42255]
[1742600679069,1.01705,1967.2,1967.1,1.01708]
[1742600679272,1.01721,1966.9,1966.8,10.10221]
[1742600679670,2.41741,1966.9,1966.8,5.872]
[1742600679872,5.62521,1966.9,1966.8,5.872]
[1742600683675,1.01731,1966.7,1966.6,2.31744]
[1742600684375,3.09991,1966.7,1966.6,2.31744]
[1742600688277,2.39371,1966.7,1966.6,2.31744]
[1742600690879,3.06201,1966.7,1966.6,2.31744]
[1742600693879,1.3764,1966.7,1966.6,2.31744]
[1742600694182,1.01727,1966.9,1966.8,1.01721]
[1742600694387,3.80917,1966.9,1966.8,1.01721]
[1742600694581,3.80917,1966.9,1966.8,2.38851]
[1742600696487,3.80911,1966.9,1966.8,2.38851]
[1742600696785,3.09911,1966.9,1966.8,2.38851]